fUST/lending_fUST_20240613
["ID","MTS","AMOUNT","RATE_DAILY","PERIOD"]
[329345956,1718263847669,-500.0,0.00017534,2]
[329345958,1718263847684,-500.0,0.00017534,2]
[329345962,1718263847701,-500.0,0.00017534,2]
[329345964,1718263847716,-500.0,0.00017534,2]
[329345968,1718263847734,-713.4,0.00017534,2]
[329345971,1718263847745,-616.14,0.00017534,2]
[329345975,1718263847804,-816.13,0.00017534,2]
[329345978,1718263847815,-1410.99,0.00017534,2]
[329345980,1718263847840,-500.0,0.00017534,2]
[329345982,1718263847851,-500.0,0.00017534,2]
[329345985,1718263847880,-500.0,0.00017534,2]
[329345988,1718263847891,-500.0,0.00017534,2]
[329345992,1718263847915,-500.0,0.00017534,2]
[329345995,1718263847935,-500.0,0.00017534,2]
[329345998,1718263847946,-500.0,0.00017534,2]
[329346001,1718263847957,-739.57,0.00017534,2]
[329346003,1718263847970,-2733.95,0.00017534,2]
[329346006,1718263847982,-1180.49,0.00017534,2]
[329346008,1718263847994,-915.03,0.00017534,2]
[329346011,1718263848007,-500.0,0.00017534,2]
[329346013,1718263848019,-869.77510336,0.00017543,2]
[329346016,1718263848037,-362.8,0.00017685,2]
[329346020,1718263848051,-592.3,0.00017706,2]
[329346024,1718263848103,-1024.51444186,0.00017722,2]
[329346028,1718263848134,-500.0,0.00017806,2]
[329346030,1718263848146,-500.0,0.00017808,2]
[329346033,1718263848158,-500.0,0.00017808,2]
[329346036,1718263848170,-500.0,0.00017808,2]
[329346038,1718263848183,-987.06,0.00017808,2]
[329346042,1718263848194,-500.0,0.00017808,2]
[329346044,1718263848224,-500.0,0.00017808,2]
[329346046,1718263848241,-500.0,0.00017808,2]
[329346050,1718263848252,-500.0,0.00017808,2]
[329346052,1718263848268,-234.26,0.00017808,2]
[329346056,1718263848284,-904.33,0.00017808,2]
[329346059,1718263848296,-834.09,0.00017808,2]
[329346062,1718263848307,-3656.61,0.00017808,2]
[329346064,1718263848319,-304.37166635,0.00017808,2]
[329346067,1718263848336,-500.0,0.00017808,2]
[329346069,1718263848348,-500.0,0.00017808,2]
[329346074,1718263848382,-526.46,0.00017808,2]
[329346077,1718263848393,-500.0,0.00017808,2]
[329346080,1718263848406,-527.52,0.00017808,2]
[329346083,1718263848425,-500.0,0.00017808,2]
[329346086,1718263848437,-713.4,0.00017808,2]
[329346088,1718263848463,-616.14,0.00017808,2]
[329346089,1718263848500,-816.13,0.00017808,2]
[329346092,1718263848524,-1410.99,0.00017808,2]
[329346097,1718263848540,-500.0,0.00017808,2]
[329346099,1718263848550,-500.0,0.00017808,2]
[329346103,1718263848573,-267.94001311,0.00017808,2]
[329346104,1718263848584,-500.0,0.00017808,2]
[329346106,1718263848608,-500.0,0.00017808,2]
[329346109,1718263848619,-739.57,0.00017808,2]
[329346111,1718263848644,-2733.95,0.00017808,2]
[329346114,1718263848661,-1180.49,0.00017808,2]
[329346117,1718263848689,-915.03,0.00017808,2]
[329346118,1718263848724,-500.0,0.00017808,2]
[329346119,1718263848743,-869.77510336,0.00017872,2]
[329346120,1718263848754,-362.8,0.00017892,2]
[329346122,1718263848768,-500.0,0.00017999,2]
[329346125,1718263848779,-500.0,0.00017999,2]
[329346127,1718263848790,-325.11946222,0.00017999,2]
[329346128,1718263848801,-500.0,0.00017999,2]
[329346130,1718263848813,-305.39116304,0.00017999,2]
[329346132,1718263848828,-592.3,0.00017999,2]
[329346134,1718263848870,-592.3,0.00017999,2]
[329346136,1718263848887,-500.0,0.00017999,2]
[329346138,1718263848900,-500.0,0.00017999,2]
[329346140,1718263848927,-500.0,0.00017999,2]
[329346142,1718263848956,-2745.0,0.00018,2]
[329346144,1718263848982,-221.63294842,0.00018,2]
[329346146,1718263849012,-70083.03885545,0.00018,2]
[329346147,1718263849037,-876.95081653,0.00018,2]
[329346150,1718263849064,-1355.76865896,0.00018,2]
[329346153,1718263849136,-476.76775304,0.00018,2]
[329346155,1718263849149,-5282.5380268,0.00018071,2]
[329346157,1718263849163,-592.3,0.00018081,2]
[329346159,1718263849177,-500.0,0.00018081,2]
[329346161,1718263849214,-500.0,0.00018082,2]
[329346163,1718263849226,-397.89539599,0.00018082,2]
[329346164,1718263849245,-500.0,0.00018082,2]
[329346167,1718263849260,-987.06,0.00018082,2]
[329346168,1718263849292,-500.0,0.00018082,2]
[329346170,1718263849308,-500.0,0.00018082,2]
[329346173,1718263849376,-500.0,0.00018082,2]
[329346175,1718263849398,-904.33,0.00018082,2]
[329346177,1718263849410,-834.09,0.00018082,2]
[329346179,1718263849422,-3656.61,0.00018082,2]
[329346181,1718263849440,-310.41,0.00018082,2]
[329346183,1718263849451,-500.0,0.00018082,2]
[329346185,1718263849487,-500.0,0.00018082,2]
[329346187,1718263849499,-500.0,0.00018082,2]
[329346189,1718263849512,-713.4,0.00018082,2]
[329346191,1718263849532,-616.14,0.00018082,2]
[329346193,1718263849560,-816.13,0.00018082,2]
[329346195,1718263849580,-1410.99,0.00018082,2]
[329346197,1718263849592,-500.0,0.00018082,2]
[329346199,1718263849603,-500.0,0.00018082,2]
[329346201,1718263849614,-500.0,0.00018082,2]
[329346203,1718263849636,-500.0,0.00018082,2]
[329346204,1718263849653,-739.57,0.00018082,2]
[329346207,1718263849669,-2733.95,0.00018082,2]
[329346208,1718263849688,-1180.49,0.00018082,2]
[329346210,1718263849715,-915.03,0.00018082,2]
[329346212,1718263849728,-500.0,0.00018082,2]
[329346214,1718263849759,-362.8,0.00018098,2]
[329346216,1718263849771,-88888.0,0.00018099,2]
[329346218,1718263849788,-32177.23760236,0.00018196,2]
[329346220,1718263849807,-592.3,0.00018198,2]
[329346221,1718263849820,-500.0,0.00018198,2]
[329346224,1718263849843,-50000.74587109,0.00018199,2]
[329346226,1718263849860,-592.3,0.00018199,2]
[329346227,1718263849872,-592.3,0.00018199,2]
[329346228,1718263849889,-500.0,0.00018199,2]
[329346230,1718263849907,-500.0,0.00018199,2]
[329346233,1718263849922,-869.77510336,0.000182,2]
[329346234,1718263849935,-1215.53315415,0.00018297,2]
[329346237,1718263849961,-553.91683976,0.00018297,2]
[329346238,1718263849993,-592.3,0.00018298,2]
[329346240,1718263850004,-592.3,0.00018299,2]
[329346242,1718263850022,-116.8036081,0.00018299,2]
[329346246,1718263850077,-475.4963919,0.00018299,2]
[329346250,1718263850108,-592.3,0.00018299,2]
[329346252,1718263850137,-592.3,0.00018299,2]
[329346254,1718263850154,-592.3,0.00018299,2]
[329346256,1718263850178,-1352.02679484,0.000183,2]
[329346258,1718263850212,-4061.16402388,0.000183,2]
[329346261,1718263850275,-351.11,0.000183,2]
[329346292,1718263850757,-169.95694796,0.00016438,2]
[329346294,1718263850773,-200.04306204,0.000183,2]
[329346295,1718263850800,-304.52303766,0.000183,2]
[329346305,1718263850985,-366.96747938,0.000183,2]
[329346309,1718263851049,-385.989009,0.000183,2]
[329346311,1718263851062,-394.22731001,0.000183,2]
[329346333,1718263851437,-995.25905827,0.000183,2]
[329346334,1718263851450,-326.39651328,0.000183,2]
[329347064,1718263992136,165.967,0.000182,30]
[329347069,1718264285013,250.0,0.000265,120]
[329347174,1718265041194,-357.70631701,0.00016338,2]
[329347176,1718265041218,-3428.76074168,0.00016437,2]
[329347177,1718265041231,-300.0,0.00016437,2]
[329347178,1718265041251,-500.0,0.00016438,2]
[329347179,1718265041271,-500.0,0.00016438,2]
[329347180,1718265041287,-524.2849234,0.00016438,2]
[329347181,1718265041302,-500.0,0.00016438,2]
[329347182,1718265041313,-500.0,0.00016438,2]
[329347183,1718265041336,-504.22704019,0.00016438,2]
[329347184,1718265041352,-500.0,0.00016438,2]
[329347185,1718265041379,-500.0,0.00016438,2]
[329347186,1718265041400,-500.0,0.00016438,2]
[329347187,1718265041412,-505.27982631,0.00016438,2]
[329347188,1718265041424,-500.0,0.00016438,2]
[329347189,1718265041441,-500.0,0.00016438,2]
[329347190,1718265041477,-500.0,0.00016438,2]
[329347191,1718265041551,-504.40469512,0.00016438,2]
[329347192,1718265041570,-500.0,0.00016438,2]
[329347193,1718265041586,-500.0,0.00016438,2]
[329347194,1718265041602,-522.48228091,0.00016438,2]
[329347195,1718265041614,-500.0,0.00016438,2]
[329347196,1718265041630,-500.0,0.00016438,2]
[329347197,1718265041642,-500.0,0.00016438,2]
[329347198,1718265041654,-500.0,0.00016438,2]
[329347199,1718265041669,-500.00000001,0.00016438,2]
[329347200,1718265041680,-500.0,0.00016438,2]
[329347201,1718265041691,-500.0,0.00016438,2]
[329347202,1718265041702,-500.69798611,0.00016438,2]
[329347203,1718265041719,-547.01315045,0.00016438,2]
[329347204,1718265041733,-338.11908651,0.00016438,2]
[329347205,1718265041764,-500.0,0.00016438,2]
[329347206,1718265041774,-500.0,0.00016438,2]
[329347207,1718265041802,-500.0,0.00016438,2]
[329347208,1718265041815,-356.56107455,0.00016438,2]
[329347209,1718265041839,-500.0,0.00016438,2]
[329347210,1718265041851,-500.0,0.00016438,2]
[329347211,1718265041867,-500.0,0.00016438,2]
[329347212,1718265041896,-506.73868456,0.00016438,2]
[329347213,1718265041910,-500.0,0.00016438,2]
[329347214,1718265041921,-500.0,0.00016438,2]
[329347215,1718265041936,-500.0,0.00016438,2]
[329347216,1718265041951,-514.51921374,0.00016438,2]
[329347217,1718265041962,-511.96001804,0.00016438,2]
[329347218,1718265041972,-500.0,0.00016438,2]
[329347219,1718265041982,-500.0,0.00016438,2]
[329347220,1718265041994,-530.48906599,0.00016438,2]
[329347221,1718265042006,-500.0,0.00016438,2]
[329347222,1718265042017,-500.0,0.00016438,2]
[329347223,1718265042029,-951.81,0.00016438,2]
[329347225,1718265042040,-500.0,0.00016438,2]
[329347226,1718265042055,-500.0,0.00016438,2]
[329347227,1718265042076,-500.0,0.00016438,2]
[329347228,1718265042086,-506.74355217,0.00016438,2]
[329347229,1718265042108,-500.0,0.00016438,2]
[329347230,1718265042123,-500.0,0.00016438,2]
[329347231,1718265042135,-500.0,0.00016438,2]
[329347232,1718265042146,-500.0,0.00016438,2]
[329347233,1718265042167,-500.0,0.00016438,2]
[329347234,1718265042195,-500.0,0.00016438,2]
[329347235,1718265042206,-500.0,0.00016438,2]
[329347236,1718265042216,-500.0,0.00016438,2]
[329347237,1718265042227,-353.05285413,0.00016438,2]
[329347238,1718265042241,-503.55851577,0.00016438,2]
[329347239,1718265042258,-228.92,0.00016438,2]
[329347240,1718265042271,-500.0,0.00016438,2]
[329347241,1718265042293,-500.0,0.00016438,2]
[329347242,1718265042318,-233.60934271,0.00016438,2]
[329347243,1718265042339,-500.0,0.00016438,2]
[329347244,1718265042362,-500.0,0.00016438,2]
[329347245,1718265042384,-500.0,0.00016438,2]
[329347246,1718265042406,-500.0,0.00016438,2]
[329347247,1718265042456,-500.0,0.00016438,2]
[329347248,1718265042487,-500.0,0.00016438,2]
[329347249,1718265042539,-500.0,0.00016438,2]
[329347250,1718265042551,-500.0,0.00016438,2]
[329347251,1718265042610,-500.0,0.00016438,2]
[329347252,1718265042625,-500.0,0.00016438,2]
[329347253,1718265042643,-503.72942643,0.00016438,2]
[329347254,1718265042673,-500.0,0.00016438,2]
[329347255,1718265042704,-500.0,0.00016438,2]
[329347256,1718265042717,-500.0,0.00016438,2]
[329347257,1718265042728,-500.0,0.00016438,2]
[329347258,1718265042743,-167.36305398,0.00016438,2]
[329347259,1718265042767,-500.0,0.00016438,2]
[329347260,1718265042781,-500.0,0.00016438,2]
[329347261,1718265042803,-500.0,0.00016438,2]
[329347262,1718265042817,-500.0,0.00016438,2]
[329347263,1718265042846,-500.0,0.00016438,2]
[329347264,1718265042865,-500.0,0.00016438,2]
[329347265,1718265042906,-500.0,0.00016438,2]
[329347266,1718265042922,-500.0,0.00016438,2]
[329347267,1718265042937,-500.0,0.00016438,2]
[329347268,1718265042956,-509.17,0.00016438,2]
[329347269,1718265042973,-500.0,0.00016438,2]
[329347270,1718265042992,-500.0,0.00016438,2]
[329347271,1718265043006,-3510.88,0.00016438,2]
[329347272,1718265043028,-500.0,0.00016438,2]
[329347273,1718265043045,-500.0,0.00016438,2]
[329347275,1718265043073,-500.0,0.00016438,2]
[329347276,1718265043137,-500.0,0.00016438,2]
[329347277,1718265043151,-500.0,0.00016438,2]
[329347278,1718265043178,-500.0,0.00016438,2]
[329347279,1718265043203,-500.0,0.00016438,2]
[329347280,1718265043224,-500.0,0.00016438,2]
[329347281,1718265043236,-500.0,0.00016438,2]
[329347282,1718265043264,-500.0,0.00016438,2]
[329347283,1718265043278,-500.0,0.00016438,2]
[329347284,1718265043313,-500.0,0.00016438,2]
[329347285,1718265043361,-500.0,0.00016438,2]
[329347286,1718265043416,-687.92,0.00016438,2]
[329347287,1718265043430,-500.0,0.00016438,2]
[329347288,1718265043457,-500.0,0.00016438,2]
[329347289,1718265043469,-500.0,0.00016438,2]
[329347290,1718265043480,-193.30367362,0.00016438,2]
[329347291,1718265043490,-500.0,0.00016438,2]
[329347292,1718265043503,-500.0,0.00016438,2]
[329347293,1718265043517,-500.0,0.00016438,2]
[329347294,1718265043531,-278.57855104,0.00016438,2]
[329347295,1718265043560,-985.66,0.00016438,2]
[329347296,1718265043574,-500.0,0.00016438,2]
[329347297,1718265043648,-500.0,0.00016438,2]
[329347298,1718265043659,-500.0,0.00016438,2]
[329347299,1718265043674,-507.78217919,0.00016438,2]
[329347300,1718265043685,-500.0,0.00016438,2]
[329347301,1718265043696,-500.0,0.00016438,2]
[329347302,1718265043709,-516.20863492,0.00016438,2]
[329347303,1718265043721,-571.99993126,0.00016438,2]
[329347304,1718265043736,-1481.21,0.00016438,2]
[329347305,1718265043747,-500.0,0.00016438,2]
[329347306,1718265043769,-500.0,0.00016438,2]
[329347307,1718265043786,-500.0,0.00016438,2]
[329347308,1718265043798,-500.0,0.00016438,2]
[329347309,1718265043808,-500.0,0.00016438,2]
[329347310,1718265043821,-779.53,0.00016438,2]
[329347314,1718265043834,-500.0,0.00016438,2]
[329347317,1718265043855,-500.0,0.00016438,2]
[329347319,1718265043890,-500.0,0.00016438,2]
[329347321,1718265043901,-500.0,0.00016438,2]
[329347322,1718265043912,-500.0,0.00016438,2]
[329347323,1718265043922,-500.0,0.00016438,2]
[329347324,1718265043933,-509.52842471,0.00016438,2]
[329347325,1718265043943,-500.0,0.00016438,2]
[329347326,1718265043972,-500.0,0.00016438,2]
[329347327,1718265043983,-217.73679175,0.00016438,2]
[329347328,1718265044004,-500.0,0.00016438,2]
[329347329,1718265044028,-508.5307097,0.00016438,2]
[329347330,1718265044038,-503.91912436,0.00016438,2]
[329347331,1718265044049,-500.0,0.00016438,2]
[329347332,1718265044062,-2157.95,0.00016438,2]
[329347333,1718265044074,-500.0,0.00016438,2]
[329347334,1718265044086,-2620.03,0.00016438,2]
[329347335,1718265044096,-500.0,0.00016438,2]
[329347336,1718265044106,-500.0,0.00016438,2]
[329347337,1718265044117,-500.0,0.00016438,2]
[329347338,1718265044128,-567.51,0.00016438,2]
[329347339,1718265044151,-500.0,0.00016438,2]
[329347340,1718265044163,-500.0,0.00016438,2]
[329347341,1718265044173,-500.0,0.00016438,2]
[329347342,1718265044184,-621.72,0.00016438,2]
[329347343,1718265044199,-1082.11,0.00016438,2]
[329347344,1718265044212,-500.0,0.00016438,2]
[329347345,1718265044224,-500.0,0.00016438,2]
[329347346,1718265044235,-500.0,0.00016438,2]
[329347347,1718265044245,-500.0,0.00016438,2]
[329347348,1718265044258,-1220.96,0.00016438,2]
[329347349,1718265044272,-516.00511711,0.00016438,2]
[329347350,1718265044295,-500.0,0.00016438,2]
[329347351,1718265044311,-500.0,0.00016438,2]
[329347352,1718265044326,-500.0,0.00016438,2]
[329347353,1718265044360,-500.0,0.00016711,2]
[329347354,1718265044378,-500.0,0.00016711,2]
[329347355,1718265044389,-500.0,0.00016711,2]
[329347356,1718265044413,-500.0,0.00016711,2]
[329347357,1718265044424,-500.0,0.00016712,2]
[329347358,1718265044438,-500.0,0.00016712,2]
[329347359,1718265044470,-505.53449038,0.00016712,2]
[329347361,1718265044482,-500.0,0.00016712,2]
[329347362,1718265044500,-500.0,0.00016712,2]
[329347364,1718265044512,-500.0,0.00016712,2]
[329347366,1718265044541,-509.08859947,0.00016712,2]
[329347369,1718265044554,-500.0,0.00016712,2]
[329347370,1718265044580,-500.0,0.00016712,2]
[329347372,1718265044594,-500.0,0.00016712,2]
[329347373,1718265044607,-500.0,0.00016712,2]
[329347375,1718265044623,-951.81,0.00016712,2]
[329347377,1718265044640,-500.0,0.00016712,2]
[329347379,1718265044651,-500.0,0.00016712,2]
[329347380,1718265044662,-500.0,0.00016712,2]
[329347381,1718265044682,-500.0,0.00016712,2]
[329347382,1718265044696,-500.0,0.00016712,2]
[329347383,1718265044709,-500.0,0.00016712,2]
[329347384,1718265044738,-500.0,0.00016712,2]
[329347385,1718265044755,-500.0,0.00016712,2]
[329347386,1718265044766,-500.0,0.00016712,2]
[329347387,1718265044779,-500.0,0.00016712,2]
[329347388,1718265044798,-250.54608254,0.00016712,2]
[329347389,1718265044831,-500.0,0.00016712,2]
[329347390,1718265044854,-500.0,0.00016712,2]
[329347391,1718265044867,-3510.88,0.00016712,2]
[329347392,1718265044902,-500.0,0.00016712,2]
[329347393,1718265044918,-509.40478286,0.00016712,2]
[329347394,1718265044937,-500.0,0.00016712,2]
[329347395,1718265044949,-500.0,0.00016712,2]
[329347396,1718265044979,-500.0,0.00016712,2]
[329347397,1718265044991,-500.0,0.00016712,2]
[329347398,1718265045012,-500.0,0.00016712,2]
[329347399,1718265045031,-500.0,0.00016712,2]
[329347400,1718265045049,-500.0,0.00016712,2]
[329347401,1718265045071,-687.92,0.00016712,2]
[329347402,1718265045100,-500.0,0.00016712,2]
[329347403,1718265045113,-985.66,0.00016712,2]
[329347404,1718265045128,-500.0,0.00016712,2]
[329347405,1718265045144,-500.0,0.00016712,2]
[329347406,1718265045165,-500.0,0.00016712,2]
[329347407,1718265045188,-1481.21,0.00016712,2]
[329347408,1718265045226,-500.0,0.00016712,2]
[329347409,1718265045255,-507.70759402,0.00016712,2]
[329347410,1718265045283,-500.0,0.00016712,2]
[329347411,1718265045304,-779.53,0.00016712,2]
[329347412,1718265045333,-500.0,0.00016712,2]
[329347413,1718265045377,-500.0,0.00016712,2]
[329347414,1718265045414,-500.0,0.00016712,2]
[329347415,1718265045447,-500.0,0.00016712,2]
[329347416,1718265045470,-500.0,0.00016712,2]
[329347417,1718265045482,-2157.95,0.00016712,2]
[329347418,1718265045494,-501.53972763,0.00016712,2]
[329347419,1718265045523,-2620.03,0.00016712,2]
[329347420,1718265045549,-500.0,0.00016712,2]
[329347421,1718265045568,-500.0,0.00016712,2]
[329347422,1718265045580,-567.51,0.00016712,2]
[329347423,1718265045596,-500.0,0.00016712,2]
[329347424,1718265045607,-500.0,0.00016712,2]
[329347425,1718265045635,-621.72,0.00016712,2]
[329347426,1718265045654,-1082.11,0.00016712,2]
[329347427,1718265045671,-500.0,0.00016712,2]
[329347428,1718265045691,-500.0,0.00016712,2]
[329347429,1718265045705,-1220.96,0.00016712,2]
[329347430,1718265045729,-1159.70013784,0.00016886,2]
[329347431,1718265045753,-500.0,0.00016984,2]
[329347432,1718265045770,-325.11946222,0.00016985,2]
[329347433,1718265045791,-500.0,0.00016985,2]
[329347434,1718265045804,-500.0,0.00016985,2]
[329347435,1718265045819,-500.0,0.00016986,2]
[329347436,1718265045832,-500.0,0.00016986,2]
[329347437,1718265045863,-500.0,0.00016986,2]
[329347438,1718265045906,-615.15,0.00016986,2]
[329347439,1718265045932,-500.0,0.00016986,2]
[329347440,1718265045944,-951.81,0.00016986,2]
[329347441,1718265045953,-500.0,0.00016986,2]
[329347442,1718265045964,-500.0,0.00016986,2]
[329347443,1718265045975,-500.0,0.00016986,2]
[329347444,1718265045985,-500.0,0.00016986,2]
[329347445,1718265046001,-500.0,0.00016986,2]
[329347446,1718265046012,-500.0,0.00016986,2]
[329347447,1718265046023,-500.0,0.00016986,2]
[329347448,1718265046037,-500.0,0.00016986,2]
[329347449,1718265046052,-500.0,0.00016986,2]
[329347450,1718265046063,-3510.88,0.00016986,2]
[329347451,1718265046074,-500.0,0.00016986,2]
[329347452,1718265046085,-161.46,0.00016986,2]
[329347453,1718265046097,-500.0,0.00016986,2]
[329347454,1718265046108,-500.0,0.00016986,2]
[329347455,1718265046122,-687.92,0.00016986,2]
[329347456,1718265046173,-500.0,0.00016986,2]
[329347457,1718265046192,-985.66,0.00016986,2]
[329347458,1718265046203,-500.0,0.00016986,2]
[329347459,1718265046216,-1481.21,0.00016986,2]
[329347460,1718265046231,-779.53,0.00016986,2]
[329347461,1718265046246,-500.0,0.00016986,2]
[329347462,1718265046260,-500.0,0.00016986,2]
[329347463,1718265046288,-500.0,0.00016986,2]
[329347464,1718265046304,-2157.95,0.00016986,2]
[329347465,1718265046328,-2620.03,0.00016986,2]
[329347466,1718265046345,-500.0,0.00016986,2]
[329347467,1718265046364,-567.51,0.00016986,2]
[329347468,1718265046377,-500.0,0.00016986,2]
[329347469,1718265046396,-500.0,0.00016986,2]
[329347470,1718265046417,-621.72,0.00016986,2]
[329347471,1718265046442,-1082.11,0.00016986,2]
[329347472,1718265046458,-500.0,0.00016986,2]
[329347473,1718265046493,-500.0,0.00016986,2]
[329347474,1718265046541,-1220.96,0.00016986,2]
[329347475,1718265046556,-500.0,0.00016999,2]
[329347476,1718265046689,-500.0,0.00016999,2]
[329347477,1718265046703,-500.0,0.00016999,2]
[329347478,1718265046731,-500.0,0.00016999,2]
[329347479,1718265046768,-63076.57934031,0.00017,2]
[329347480,1718265046781,-1159.70013782,0.00017229,2]
[329347481,1718265046802,-500.0,0.00017259,2]
[329347482,1718265046821,-500.0,0.00017259,2]
[329347483,1718265046846,-397.89539599,0.0001726,2]
[329347484,1718265046888,-500.0,0.0001726,2]
[329347485,1718265046909,-348.78,0.0001726,2]
[329347486,1718265046925,-500.0,0.0001726,2]
[329347487,1718265046944,-951.81,0.0001726,2]
[329347488,1718265046960,-500.0,0.0001726,2]
[329347489,1718265046981,-500.0,0.0001726,2]
[329347490,1718265046995,-500.0,0.0001726,2]
[329347491,1718265047025,-500.0,0.0001726,2]
[329347492,1718265047039,-500.0,0.0001726,2]
[329347493,1718265047056,-500.0,0.0001726,2]
[329347494,1718265047089,-500.0,0.0001726,2]
[329347495,1718265047122,-500.0,0.0001726,2]
[329347496,1718265047134,-3510.88,0.0001726,2]
[329347497,1718265047175,-500.0,0.0001726,2]
[329347498,1718265047238,-500.0,0.0001726,2]
[329347499,1718265047266,-500.0,0.0001726,2]
[329347500,1718265047280,-687.92,0.0001726,2]
[329347501,1718265047302,-500.0,0.0001726,2]
[329347502,1718265047314,-985.66,0.0001726,2]
[329347503,1718265047344,-500.0,0.0001726,2]
[329347504,1718265047401,-1481.21,0.0001726,2]
[329347505,1718265047421,-779.53,0.0001726,2]
[329347506,1718265047432,-500.0,0.0001726,2]
[329347507,1718265047448,-500.0,0.0001726,2]
[329347509,1718265047470,-500.0,0.0001726,2]
[329347511,1718265047482,-2157.95,0.0001726,2]
[329347512,1718265047499,-2620.03,0.0001726,2]
[329347513,1718265047529,-500.0,0.0001726,2]
[329347514,1718265047554,-567.51,0.0001726,2]
[329347515,1718265047565,-267.94001311,0.0001726,2]
[329347516,1718265047585,-621.72,0.0001726,2]
[329347517,1718265047596,-500.0,0.0001726,2]
[329347518,1718265047608,-1082.11,0.0001726,2]
[329347519,1718265047620,-500.0,0.0001726,2]
[329347520,1718265047634,-500.0,0.0001726,2]
[329347521,1718265047646,-1220.96,0.0001726,2]
[329347522,1718265047657,-500.0,0.00017533,2]
[329347523,1718265047667,-500.0,0.00017534,2]
[329347524,1718265047678,-500.0,0.00017534,2]
[329347525,1718265047689,-951.81,0.00017534,2]
[329347526,1718265047699,-500.0,0.00017534,2]
[329347527,1718265047711,-500.0,0.00017534,2]
[329347528,1718265047722,-500.0,0.00017534,2]
[329347529,1718265047742,-500.0,0.00017534,2]
[329347530,1718265047753,-234.26,0.00017534,2]
[329347531,1718265047764,-500.0,0.00017534,2]
[329347532,1718265047774,-500.0,0.00017534,2]
[329347533,1718265047785,-3510.88,0.00017534,2]
[329347534,1718265047797,-500.0,0.00017534,2]
[329347535,1718265047808,-500.0,0.00017534,2]
[329347536,1718265047819,-500.0,0.00017534,2]
[329347537,1718265047829,-687.92,0.00017534,2]
[329347538,1718265047839,-500.0,0.00017534,2]
[329347539,1718265047849,-985.66,0.00017534,2]
[329347540,1718265047863,-1481.21,0.00017534,2]
[329347541,1718265047875,-779.53,0.00017534,2]
[329347542,1718265047904,-500.0,0.00017534,2]
[329347543,1718265047915,-500.0,0.00017534,2]
[329347544,1718265047925,-500.0,0.00017534,2]
[329347545,1718265047937,-2157.95,0.00017534,2]
[329347546,1718265047947,-2620.03,0.00017534,2]
[329347547,1718265047961,-500.0,0.00017534,2]
[329347548,1718265047978,-567.51,0.00017534,2]
[329347549,1718265047989,-621.72,0.00017534,2]
[329347550,1718265047999,-500.0,0.00017534,2]
[329347551,1718265048012,-1082.11,0.00017534,2]
[329347552,1718265048022,-500.0,0.00017534,2]
[329347553,1718265048032,-500.0,0.00017534,2]
[329347554,1718265048045,-1220.96,0.00017534,2]
[329347555,1718265048059,-1159.70013782,0.00017571,2]